bitfinex/quotes_ETHUSD_20251126
["timestamp","ask_amount","ask_price","bid_price","bid_amount"]
[1764117706154,0.002,2956.3,2956.2,4.32431517]
[1764117706357,0.002,2956.3,2956.2,4.10831517]
[1764117706652,0.4908,2956.3,2956.2,4.10831517]
[1764117707617,0.002,2956.3,2956.2,4.10831517]
[1764117708471,0.002,2956.3,2956.2,4.54764638]
[1764117708621,0.002,2956.3,2956.2,4.61381917]
[1764117708930,0.002,2956.3,2956.2,4.64764638]
[1764117709125,0.002,2956.3,2956.2,4.61381917]
[1764117711743,0.002,2956.3,2956.2,4.64764638]
[1764117712652,0.002,2956.3,2956.2,4.51381917]
[1764117713225,0.002,2956.3,2956.2,3.59772106]
[1764117713457,0.002,2956.3,2956.2,4.32331517]
[1764117713754,0.002,2956.3,2956.2,3.59772106]
[1764117713951,0.002,2956.3,2956.2,4.32331517]
[1764117715444,0.4753,2956.3,2956.2,4.10831517]
[1764117715644,0.9293,2956.3,2956.2,4.10831517]
[1764117715952,0.9293,2956.3,2956.0,6.76678725]
[1764117716151,0.454,2956.2,2956.1,0.72559411]
[1764117716538,0.9273,2956.2,2956.1,4.1084296]
[1764117718566,1.80138262,2958.3,2957.7,0.1]
[1764117718784,0.002,2958.7,2958.0,0.72559411]
[1764117718984,0.1884,2960.6,2958.9,0.90019411]
[1764117719277,0.1884,2959.8,2959.0,1.82242192]
[1764117719481,10.56160116,2959.7,2959.0,0.405504]
[1764117719775,4.22224753,2959.7,2959.5,1.21035579]
[1764117719990,0.1884,2959.8,2959.6,1.63389724]
[1764117720146,0.1884,2959.8,2959.7,1.63389724]
[1764117720345,0.6617,2959.8,2959.7,0.72606542]
[1764117720586,1.1157,2959.8,2959.7,0.72606542]
[1764117720751,1.1202,2959.8,2959.7,5.01251915]
[1764117720957,1.1202,2959.8,2959.7,4.10478623]
[1764117722866,0.002,2960.5,2959.7,4.10478623]
[1764117722867,0.218,2960.3,2959.8,0.72559411]
[1764117723071,0.218,2960.3,2959.9,0.72606542]
[1764117723271,0.4585,2960.2,2960.0,0.72606542]
[1764117723468,0.4585,2960.2,2960.1,0.72606542]
[1764117723984,0.9267,2960.2,2960.1,0.72606542]
[1764117724547,0.9267,2960.2,2960.1,4.82992377]
[1764117725179,0.4682,2960.2,2960.1,4.82992377]
[1764117725778,0.9267,2960.2,2960.1,4.82992377]
[1764117727610,0.4682,2960.2,2960.1,4.82992377]
[1764117729774,0.002,2960.5,2960.2,0.72559411]
[1764117729974,0.002,2960.5,2960.3,0.72606542]
[1764117730206,0.002,2960.5,2960.4,0.72606542]
[1764117730599,0.002,2960.5,2960.2,0.72559411]
[1764117730907,0.002,2960.5,2960.3,0.71863909]
[1764117731104,0.002,2960.5,2960.2,0.72559411]
[1764117731313,0.4682,2960.3,2960.2,0.72559411]
[1764117731513,0.4682,2960.3,2960.2,1.44398338]
[1764117731696,0.9267,2960.3,2960.2,4.8221335]
[1764117736228,0.002,2960.5,2960.2,8.20028362]
[1764117736397,0.002,2960.5,2960.3,0.71838927]
[1764117736598,0.002,2960.5,2960.4,0.71838927]
[1764117736798,0.002,2960.5,2960.4,0.89298927]
[1764117737101,0.002,2960.5,2960.4,1.83163382]
[1764117737302,0.002,2960.5,2960.4,0.92676848]
[1764117738126,0.002,2960.5,2960.4,5.03028449]
[1764117738428,0.002,2960.5,2960.4,6.20686107]
[1764117738723,0.002,2960.5,2960.4,6.78696507]
[1764117738926,0.002,2960.5,2960.4,7.3917783]
[1764117739527,0.002,2960.5,2960.4,7.2171783]
[1764117740739,0.002,2960.5,2960.4,4.68362001]
[1764117741304,0.002,2960.5,2960.4,4.89199922]
[1764117741506,0.002,2960.5,2960.4,4.99199922]
[1764117742408,0.002,2960.5,2960.4,6.18918359]
[1764117742634,0.002,2960.5,2960.4,6.08918359]
[1764117742944,0.002,2960.5,2960.4,5.88080438]
[1764117743437,0.002,2960.5,2960.4,4.68362001]
[1764117743644,0.002,2960.5,2960.4,4.71739922]
[1764117744422,0.002,2960.5,2960.4,4.50902001]
[1764117745245,0.002,2960.5,2960.4,6.49878903]
[1764117745457,0.002,2960.5,2960.4,4.68362001]
[1764117746247,0.002,2960.5,2960.4,4.54279922]
[1764117746410,0.9327,2960.5,2960.4,5.18315056]
[1764117746615,0.9327,2960.5,2960.4,3.3779219]
[1764117746939,0.9327,2960.5,2960.4,4.10351601]
[1764117747330,0.9327,2960.5,2960.4,3.3779219]
[1764117748350,0.9327,2960.5,2960.4,4.10451601]
[1764117750149,0.9327,2960.5,2960.4,0.001]
[1764117750326,0.9327,2960.5,2960.4,5.19734396]
[1764117750853,0.9327,2960.5,2960.4,3.3789219]
[1764117751632,0.9327,2960.5,2960.4,0.001]
[1764117751832,0.9327,2960.5,2960.4,1.21394047]
[1764117752125,1.1497,2960.5,2960.4,1.21394047]
[1764117752627,1.1497,2960.5,2960.4,0.001]
[1764117754365,1.1497,2960.5,2960.4,0.91113452]
[1764117754528,1.1497,2960.5,2960.4,0.001]
[1764117754529,4.631468,2960.5,2960.4,0.001]
[1764117755329,4.631468,2960.5,2960.1,4.59218711]
[1764117755330,7.466966,2960.3,2960.1,1.21394047]
[1764117755631,9.064302,2960.1,2959.6,1.21294047]
[1764117755847,0.6645,2959.9,2959.5,1.21394047]
[1764117756341,1.1299,2959.9,2959.5,0.001]
[1764117760283,4.91389651,2959.9,2959.5,0.001]
[1764117760449,1.3469,2959.9,2959.5,0.001]
[1764117766796,1.1299,2959.9,2959.5,0.001]
[1764117767000,1.3459,2959.9,2959.5,0.001]
[1764117768276,3.997242,2959.9,2959.5,0.001]
[1764117769197,7.932323,2959.9,2959.5,0.001]
[1764117770305,0.405504,2959.6,2959.5,0.001]
[1764117770601,0.405504,2959.4,2959.2,0.001]
[1764117770790,0.6694,2959.3,2959.2,0.001]
[1764117771168,1.1551,2959.3,2959.2,0.001]
[1764117772585,4.889986,2959.3,2959.2,0.001]
[1764117772911,4.428786,2959.3,2959.2,0.001]
[1764117773609,1.560604,2959.3,2959.2,0.001]
[1764117773923,5.031778,2959.3,2959.2,0.001]
[1764117774805,1.1551,2959.3,2959.2,0.001]
[1764117774992,0.9391,2959.3,2959.2,0.001]
[1764117775194,0.4534,2959.3,2959.2,0.001]
[1764117775394,0.6694,2959.3,2959.2,0.001]
[1764117775799,0.6849,2959.9,2959.2,0.1756]
[1764117776007,0.216,2959.8,2959.2,0.001]
[1764117776318,0.216,2959.7,2959.2,0.001]
[1764117777218,0.7017,2959.7,2959.2,0.001]
[1764117777428,0.216,2959.7,2959.2,0.001]
[1764117777608,0.4857,2959.6,2959.2,6.7595834]
[1764117779548,0.4534,2959.3,2959.2,4.10588581]
[1764117780226,0.216,2959.7,2959.2,7.65977751]
[1764117780574,0.6872,2959.7,2959.2,7.65977751]
[1764117781077,0.4712,2959.6,2959.2,7.65977751]
[1764117782353,0.4936,2959.3,2959.2,4.10588581]
[1764117782866,0.9648,2959.3,2959.2,4.10588581]
[1764117783768,0.002,2959.6,2959.2,7.83437751]
[1764117783961,0.216,2959.3,2959.2,4.28048581]
[1764117784268,0.216,2959.5,2959.2,7.65977751]
[1764117784567,0.002,2959.6,2959.3,0.90019411]
[1764117784786,0.002,2959.9,2959.5,3.32437285]
[1764117784938,0.002,2959.9,2959.8,0.1726]
[1764117785352,0.002,2959.9,2959.8,0.3452]
[1764117785555,0.002,2959.9,2959.8,1.07079411]
[1764117785764,0.002,2959.9,2959.8,3.90047685]
[1764117786249,0.002,2959.9,2959.8,4.85490477]
[1764117786649,0.002,2960.5,2959.8,11.71211809]
[1764117786853,0.002,2960.5,2960.2,0.1726]
[1764117787268,0.002,2960.5,2960.2,0.750704]
[1764117788153,0.002,2960.5,2960.2,6.67047243]
[1764117789273,0.002,2960.5,2960.2,4.85444823]
[1764117789666,0.002,2960.5,2960.2,4.44894423]
[1764117789852,0.002,2960.5,2960.2,5.48614648]
[1764117790263,0.002,2960.5,2960.2,4.44894423]
[1764117790599,0.002,2960.5,2960.2,5.65874648]
[1764117791160,0.002,2960.5,2960.2,5.31354648]
[1764117791361,0.002,2960.5,2960.2,4.10374423]
[1764117791590,0.002,2960.5,2960.2,4.27634423]
[1764117792591,1e-08,2960.6,2960.5,0.1706]
[1764117792811,0.002,2961.0,2960.5,0.1706]
[1764117792812,0.002,2961.0,2960.8,0.405504]
[1764117793098,0.1942,2961.9,2961.0,0.1686]
[1764117793300,0.4712,2961.8,2961.1,0.3372]
[1764117793591,0.6654,2962.4,2961.1,0.3372]
[1764117793758,0.101,2962.3,2961.1,0.5058]
[1764117794159,0.1942,2961.9,2961.1,0.5058]
[1764117795093,0.1942,2961.9,2961.1,4.60851747]
[1764117796363,0.1942,2961.9,2961.1,4.43991747]
[1764117796571,0.6654,2961.9,2961.1,4.43991747]
[1764117797695,0.4712,2961.7,2961.1,4.43991747]
[1764117799609,0.4712,2961.7,2961.1,4.10271747]
[1764117800186,0.1942,2961.9,2961.1,4.3050887]
[1764117800506,0.1942,2961.9,2961.1,4.4736887]
[1764117801314,0.6808,2961.9,2961.1,4.3050887]
[1764117801878,0.6808,2961.9,2961.1,4.4736887]
[1764117802514,0.002,2961.5,2961.1,4.4736887]
[1764117803812,0.002,2961.5,2961.1,4.3050887]
[1764117805013,0.002,2961.5,2961.1,4.4736887]
[1764117808128,0.002,2961.5,2961.1,4.3050887]
[1764117809091,0.002,2961.5,2961.1,5.47799785]
[1764117810316,0.002,2961.5,2961.1,5.64659785]
[1764117810521,0.002,2961.5,2961.1,5.68036908]
[1764117811211,0.002,2961.5,2961.1,4.4736887]
[1764117811720,0.002,2961.5,2961.1,4.3050887]
[1764117812221,0.002,2961.5,2961.1,6.11510957]
[1764117813113,0.002,2961.5,2961.1,4.27131747]
[1764117813301,0.002,2961.5,2961.1,4.3050887]
[1764117814927,0.9795,2961.2,2961.0,1.81787628]
[1764117815094,0.9795,2961.2,2960.9,1.21205719]
[1764117815095,0.4843,2961.1,2960.9,1.21205719]
[1764117815299,0.002,2961.2,2961.0,3.41098875]
[1764117815627,0.002,2961.2,2961.1,0.89419411]
[1764117815814,0.002,2961.2,2961.1,1.06279411]
[1764117816700,0.002,2961.2,2961.1,0.89419411]
[1764117816900,0.002,2961.2,2961.1,0.72559411]
[1764117817701,0.002,2961.2,2961.1,4.27131747]
[1764117817896,0.002,2961.2,2961.1,4.3050887]
[1764117821449,0.002,2961.2,2961.1,4.4736887]
[1764117821751,0.4863,2961.2,2961.1,3.41089459]
[1764117821964,0.9795,2961.2,2961.1,4.59216321]
[1764117822145,0.9795,2961.2,2961.1,4.10271747]
[1764117822345,0.9795,2961.2,2961.1,5.31868056]
[1764117822550,0.9795,2961.2,2961.1,4.10271747]
[1764117824728,0.9795,2961.2,2961.1,0.72559411]
[1764117825772,0.9795,2961.2,2961.1,4.10271747]
[1764117825928,0.9795,2961.2,2961.1,0.72559411]
[1764117826129,0.9795,2961.2,2961.0,3.37819071]
[1764117826452,0.9775,2961.1,2961.0,3.37819071]
[1764117826658,0.9775,2961.1,2961.0,0.001]
[1764117827956,0.4843,2961.1,2961.0,0.001]
[1764117828265,0.002,2961.2,2961.0,0.001]
[1764117828635,0.002,2961.2,2961.0,6.75547482]
[1764117829463,0.4843,2961.1,2961.0,4.10383152]
[1764117829867,0.4843,2961.1,2960.8,0.001]
[1764117830066,0.6719,2960.9,2960.8,0.001]
[1764117830271,0.98751287,2960.9,2960.8,0.001]
[1764117830467,1.1317,2960.9,2960.8,0.001]
[1764117830768,1.1317,2960.9,2960.8,0.72659411]
[1764117832763,1.1317,2960.9,2960.8,4.10405965]
[1764117833156,1.1317,2960.9,2960.8,0.72659411]
[1764117833341,1.1317,2960.9,2960.8,4.10405965]
[1764117833846,1.1317,2960.9,2960.8,0.001]
[1764117837682,0.6775,2960.9,2960.8,0.001]
[1764117837882,0.002,2961.0,2960.8,0.001]
[1764117838084,1.1114,2960.9,2960.8,0.001]
[1764117839758,0.8666,2960.9,2960.8,0.001]
[1764117839982,1.3264,2960.9,2960.8,0.001]
[1764117842000,4.498771,2960.9,2960.8,0.001]
[1764117842288,12.22733148,2960.9,2960.8,0.001]
[1764117842794,1.3264,2960.9,2960.8,0.001]
[1764117844687,11.435656,2960.9,2960.8,0.001]
[1764117844888,8.60856185,2960.9,2960.8,0.001]
[1764117845292,8.60846278,2960.9,2960.8,0.001]
[1764117846089,5.2311113,2960.9,2960.8,0.001]
[1764117846265,8.60846278,2960.9,2960.8,0.001]
[1764117846993,4.9723613,2960.9,2960.8,0.001]
[1764117850775,8.34971278,2960.9,2960.8,0.001]
[1764117852405,4.2975613,2960.9,2960.8,0.001]
[1764117852606,0.6775,2960.9,2960.8,0.001]
[1764117853506,1.63621267,2960.9,2960.8,0.001]
[1764117853708,1.3211,2960.9,2960.8,0.001]
[1764117854057,1.18241302,2960.9,2960.8,0.001]
[1764117854516,1.63621302,2960.9,2960.8,0.001]
[1764117858324,1.63644726,2960.9,2960.8,0.001]
[1764117861547,6.28022426,2960.9,2960.8,0.001]
[1764117861822,1.63644726,2960.9,2960.8,0.001]
[1764117864919,6.32774726,2960.9,2960.8,0.001]
[1764117865213,6.10664726,2960.9,2960.8,0.001]
[1764117869938,0.99284726,2960.9,2960.8,0.001]
[1764117870146,0.31534726,2960.9,2960.8,0.4579]
[1764117870311,0.53034726,2960.9,2960.8,0.4579]
[1764117871637,0.53034726,2960.9,2960.8,3.83536554]
[1764117871950,0.53034726,2960.9,2960.8,0.4579]
[1764117872248,0.98794726,2960.9,2960.8,0.001]
[1764117873644,1.44024726,2960.9,2960.8,0.001]
[1764117874548,0.98794726,2960.9,2960.8,0.001]
[1764117875344,1.44024726,2960.9,2960.8,0.001]
[1764117876748,0.53034726,2960.9,2960.8,0.4579]
[1764117877534,0.98794726,2960.9,2960.8,0.001]
[1764117881343,1.44024726,2960.9,2960.8,0.001]
[1764117883254,0.98794726,2960.9,2960.8,0.001]
[1764117885959,0.98794726,2960.9,2960.4,6.70780626]
[1764117886158,0.31534726,2960.8,2960.4,0.4715]
[1764117886339,0.6726,2960.9,2960.5,0.4715]
[1764117886539,0.31617226,2960.8,2960.5,0.4715]
[1764117886839,0.215,2960.9,2960.5,0.4715]
[1764117887041,0.31617768,2960.8,2960.6,3.37769371]
[1764117887257,0.215,2960.9,2960.8,0.4569]
[1764117887439,0.53118171,2960.9,2960.8,0.4569]
[1764117887836,0.53118171,2960.9,2960.8,0.4579]
[1764117888038,5.54028471,2960.9,2960.8,0.001]
[1764117888250,4.10789371,2960.9,2960.8,0.001]
[1764117888444,1.62618171,2960.9,2960.8,0.001]
[1764117890154,4.31903271,2960.9,2960.8,0.001]
[1764117890658,1.62618171,2960.9,2960.8,0.001]
[1764117892261,0.53118171,2960.9,2960.8,0.001]
[1764117893462,0.53118171,2960.9,2960.8,0.461]
[1764117893662,0.53118171,2960.9,2960.8,3.83846554]
[1764117894164,0.53118171,2960.9,2960.8,0.461]
[1764117897264,0.53118171,2960.9,2960.8,0.001]
[1764117897966,0.53118171,2960.9,2960.8,0.461]
[1764117898365,0.53118171,2960.9,2960.8,3.83846554]
[1764117898536,0.002,2961.0,2960.9,0.72559411]
[1764117898730,0.002,2961.0,2960.9,1.65059411]
[1764117898938,0.002,2961.0,2960.9,3.47296469]
[1764117899332,0.002,2961.0,2960.9,1.65059411]
[1764117900261,0.002,2961.0,2960.9,5.02794559]
[1764117900462,0.002,2961.0,2960.9,0.46]
[1764117900661,0.002,2961.0,2960.9,4.56294559]
[1764117901065,0.002,2961.0,2960.9,5.02094559]
[1764117901267,0.4666,2961.0,2960.9,4.10294559]
[1764117901570,0.002,2961.0,2960.9,4.10294559]
[1764117901730,0.4666,2961.0,2960.9,4.10294559]
[1764117902169,0.002,2961.0,2960.9,4.60044559]
[1764117902352,0.002,2961.0,2960.9,5.05844559]
[1764117904864,0.002,2961.0,2960.9,4.60044559]
[1764117905567,0.002,2961.0,2960.9,4.10294559]
[1764117905739,0.002,2961.0,2960.9,4.60044559]
[1764117906154,0.002,2961.0,2960.9,5.05844559]
[1764117910469,0.002,2961.0,2960.9,5.0922191]
[1764117910751,0.002,2961.0,2960.9,5.05844559]
[1764117914776,0.002,2961.0,2960.9,5.00844559]
[1764117914972,0.002,2961.0,2960.9,5.0422191]
[1764117918359,0.002,2961.0,2960.9,5.00844559]
[1764117918554,0.002,2961.0,2960.9,5.4477231]
[1764117918788,0.002,2961.0,2960.9,7.33069934]
[1764117919283,0.002,2961.0,2960.9,7.23069934]
[1764117919491,0.002,2961.0,2960.9,5.41394959]
[1764117919781,0.002,2961.0,2960.9,7.23069934]
[1764117922181,0.002,2961.2,2961.0,1.13109811]
[1764117922382,0.002,2962.7,2961.5,0.869304]
[1764117922596,0.002,2962.7,2961.7,3.51167121]
[1764117922894,0.002,2962.7,2961.7,2.16109811]
[1764117923256,0.002,2962.7,2961.7,2.06109811]
[1764117923461,0.002,2962.7,2961.7,4.09180507]
[1764117923677,0.002,2962.7,2961.7,2.37609811]
[1764117923885,0.002,2962.7,2961.7,2.27609811]
[1764117924091,0.002,2962.7,2961.7,5.75253731]
[1764117924257,0.002,2962.7,2961.7,7.56820275]
[1764117924561,0.002,2962.7,2961.7,5.75253731]
[1764117924761,0.002,2962.7,2961.7,5.7863017]
[1764117926495,0.002,2962.7,2961.7,5.6863017]
[1764117926895,0.4919,2962.6,2961.7,5.65253731]
[1764117927723,0.002,2962.7,2961.7,5.65253731]
[1764117927902,0.002,2962.7,2961.7,5.7863017]
[1764117928103,0.002,2962.7,2961.9,0.405504]
[1764117928307,0.002,2962.7,2962.4,1.037904]
[1764117928643,0.002,2962.7,2962.4,1.719104]
[1764117929752,0.002,2962.7,2962.4,1.75286041]
[1764117929906,0.002,2962.7,2962.4,2.47845452]
[1764117930101,0.002,2962.7,2962.4,5.85409589]
[1764117930310,0.002,2962.7,2962.4,5.92033948]
[1764117930724,0.002,2962.7,2962.4,5.95409589]
[1764117931005,0.002,2962.7,2962.4,5.82033948]
[1764117932850,0.002,2962.7,2962.4,5.60533948]
[1764117933069,0.002,2962.7,2962.4,5.82033948]
[1764117934048,0.4653,2962.5,2962.4,4.50673948]
[1764117934220,0.4653,2962.5,2962.4,4.97053948]
[1764117934221,0.002,2962.5,2962.4,4.97053948]
[1764117936166,0.002,2962.5,2962.4,5.43673948]
[1764117936370,0.002,2962.5,2962.4,5.53673948]
[1764117936592,0.002,2963.0,2962.9,3.88057572]
[1764117936742,0.002,2963.0,2962.9,5.75116983]
[1764117937142,0.002,2963.0,2962.9,5.65116983]
[1764117939549,0.002,2963.0,2962.9,5.18496983]
[1764117939750,0.9572,2963.0,2962.9,4.10066583]
[1764117941861,0.9572,2963.0,2962.9,3.37507172]
[1764117942950,0.9572,2963.0,2962.6,10.85183455]
[1764117943248,0.6762,2962.9,2962.6,7.47642107]
[1764117943474,0.4633,2962.7,2962.6,4.10100759]
[1764117944543,0.9552,2962.7,2962.6,4.10100759]
[1764117947550,0.002,2963.0,2962.6,7.47642107]
[1764117947746,0.4939,2963.0,2962.6,10.85183455]
[1764117948613,0.6356,2962.7,2962.6,4.10100759]
[1764117949916,0.4633,2962.7,2962.6,4.10100759]
[1764117950211,0.6642,2962.7,2962.6,4.10100759]
[1764117958132,0.002,2962.8,2962.6,7.94642107]
[1764117958802,0.461,2962.7,2962.6,4.10100759]
[1764117958996,0.461,2962.7,2962.6,3.37541348]
[1764117958997,0.9354,2962.7,2962.6,3.37541348]
[1764117959249,0.9354,2962.7,2962.6,4.10100759]
[1764117961137,0.9354,2962.7,2962.6,3.37541348]
[1764117961336,0.461,2962.7,2962.6,3.37541348]
[1764117961539,0.9329,2962.7,2962.6,3.37541348]
[1764117962102,0.9329,2962.7,2962.5,3.37652541]
[1764117962103,0.9329,2962.7,2962.5,0.001]
[1764117962336,0.002,2962.8,2962.5,0.001]
[1764117962337,0.651,2962.6,2962.5,0.001]
[1764117962545,0.651,2962.6,2962.5,3.37651656]
[1764117962909,0.651,2962.6,2962.5,0.001]
[1764117964944,0.96660602,2962.6,2962.5,0.001]
[1764117965328,0.651,2962.6,2962.5,0.001]
[1764117965646,0.96643366,2962.6,2962.5,0.001]
[1764117966340,4.34184714,2962.6,2962.5,0.001]
[1764117966712,0.96643366,2962.6,2962.5,0.001]
[1764117969155,0.96612846,2962.6,2962.5,0.001]
[1764117969646,4.34154194,2962.6,2962.5,0.001]
[1764117970628,0.96612846,2962.6,2962.5,0.001]
[1764117971431,1.18112846,2962.6,2962.5,0.001]
[1764117973467,0.866,2962.6,2962.5,0.001]
[1764117975130,9.99515396,2962.6,2962.5,0.001]
[1764117975459,0.002,2962.8,2962.5,0.001]
[1764117975872,0.4791,2962.6,2962.5,0.001]
[1764117976366,0.4739,2962.8,2962.5,0.4808]
[1764117976667,0.002,2962.8,2962.5,0.4808]
[1764117977370,0.4739,2962.8,2962.6,3.37541348]
[1764117977976,0.4791,2962.7,2962.6,3.37541348]
[1764117978359,0.002,2962.8,2962.6,3.37541348]
[1764117978561,0.4791,2962.7,2962.6,3.37541348]
[1764117978767,0.4791,2962.7,2962.5,0.001]
[1764117978965,0.3762,2962.6,2962.5,3.37652071]
[1764117979279,0.3762,2962.6,2962.5,0.001]
[1764117979652,0.8481,2962.6,2962.5,0.001]
[1764117980776,0.3762,2962.6,2962.5,0.001]
[1764117981847,0.8683,2962.6,2962.5,0.001]
[1764117982351,0.002,2962.8,2962.5,0.001]
[1764117982561,0.215,2962.7,2962.5,0.4573]
[1764117983250,0.215,2962.7,2962.6,3.37541348]
[1764117983778,0.6738,2962.7,2962.6,3.37541348]
[1764117984356,0.6738,2962.7,2962.5,3.37647976]
[1764117984687,0.1612,2962.6,2962.5,0.001]
[1764117985248,0.6533,2962.6,2962.5,0.001]
[1764117985684,0.1612,2962.6,2962.5,0.001]
[1764117986068,0.215,2962.7,2962.5,0.4573]
[1764117986560,0.215,2962.7,2962.5,0.001]
[1764117989305,0.215,2962.7,2962.6,0.4563]
[1764117989468,0.002,2962.8,2962.6,6.75082696]
[1764117989793,0.4588,2962.7,2962.6,3.37541348]
[1764117991379,0.002,2962.8,2962.6,0.4563]
[1764117991884,0.002,2962.8,2962.7,0.4563]
[1764117992490,0.002,2962.8,2962.7,0.9529]
[1764117993488,0.002,2962.8,2962.7,5.05379366]
[1764117994693,0.002,2962.8,2962.7,5.45929766]
[1764117994903,0.002,2963.1,2963.0,0.405504]
[1764117995090,0.002,2963.1,2963.0,4.10244954]
[1764117995287,0.002,2963.1,2963.0,1.1679]
[1764117995502,0.002,2963.1,2963.0,5.26845192]
[1764117996291,0.002,2963.1,2963.0,5.05345192]
[1764118000016,0.002,2963.1,2963.0,4.10055192]
[1764118000519,0.4608,2963.1,2963.0,3.37495781]
[1764118000724,0.4608,2963.1,2963.0,4.10055192]
[1764118001226,0.002,2963.1,2963.0,4.10055192]
[1764118003599,0.002,2963.1,2963.0,4.55685192]
[1764118005940,0.002,2963.1,2963.0,4.10055192]
[1764118006730,0.002,2963.1,2963.0,4.55685192]
[1764118007537,0.002,2963.1,2963.0,5.05345192]
[1764118008845,0.002,2963.1,2963.0,4.10155192]
[1764118009203,0.002,2963.1,2963.0,4.55785192]
[1764118012039,0.002,2963.1,2963.0,5.03545192]
[1764118012639,0.002,2963.1,2963.0,5.06920149]
[1764118015849,0.002,2963.1,2963.0,5.03545192]
[1764118016544,0.002,2963.1,2963.0,6.85368276]
[1764118018848,0.002,2963.1,2963.0,6.37608276]
[1764118019339,0.002,2963.1,2963.0,5.03545192]
[1764118019709,0.002,2963.1,2963.0,6.37723213]
[1764118020845,0.002,2963.1,2963.0,6.82743213]
[1764118021047,0.002,2963.1,2963.0,5.00805192]
[1764118021840,0.002,2963.1,2963.0,4.55785192]
[1764118022319,0.002,2963.1,2963.0,5.00805192]
[1764118022823,0.488,2963.1,2963.0,4.10155192]
[1764118023022,0.002,2963.1,2963.0,4.58175192]
[1764118029160,0.002,2963.1,2963.0,4.10155192]
[1764118029957,0.002,2963.1,2963.0,4.58175192]
[1764118030756,0.002,2963.1,2963.0,4.10155192]
[1764118030961,0.488,2963.1,2963.0,4.10155192]
[1764118031759,0.002,2963.1,2963.0,4.10155192]
[1764118031937,0.002,2963.1,2963.0,4.58175192]
[1764118032554,0.002,2963.1,2963.0,4.10155192]
[1764118034350,0.488,2963.1,2963.0,4.10155192]
[1764118034562,0.9716,2963.1,2963.0,4.10155192]
[1764118034769,0.9716,2963.1,2963.0,5.92485287]
[1764118035970,0.9716,2963.1,2963.0,5.19925876]
[1764118036267,0.9716,2963.1,2963.0,4.10155192]
[1764118037935,0.9716,2963.1,2963.0,0.001]
[1764118039177,9.06835697,2963.1,2963.0,0.001]
[1764118039349,5.69351306,2963.1,2963.0,0.001]
[1764118039546,1.69346306,2963.1,2963.0,0.001]
[1764118039751,3.85221406,2963.1,2963.0,0.001]
[1764118039939,3.98750024,2963.1,2963.0,0.001]
[1764118040141,0.405504,2963.0,2962.7,0.001]
[1764118040471,0.746704,2962.8,2962.7,0.001]
[1764118040674,1.06306306,2962.8,2962.7,0.001]
[1764118040871,1.53756306,2962.8,2962.7,0.001]
[1764118041069,1.13205906,2962.8,2962.5,0.001]
[1764118041251,0.4554,2962.6,2962.5,0.001]
[1764118041453,0.77175906,2962.6,2962.5,0.001]
[1764118041653,1.24625906,2962.6,2962.5,0.001]
[1764118042280,0.9299,2962.6,2962.5,0.001]
[1764118046319,1.1449,2962.6,2962.5,0.001]
[1764118051213,0.215,2962.6,2962.5,0.001]
[1764118051417,1.1449,2962.6,2962.5,0.001]
[1764118055840,22.22262548,2962.6,2962.5,0.001]
[1764118056038,13.404876,2962.4,2962.3,0.001]
[1764118056204,6.572567,2962.3,2962.0,0.001]
[1764118056533,4.951647,2962.1,2962.0,0.001]
[1764118056836,4.705447,2962.1,2962.0,0.001]
[1764118057051,5.179947,2962.1,2962.0,0.001]
[1764118057251,4.427047,2962.1,2962.0,0.001]
[1764118057551,7.80303025,2962.1,2962.0,0.001]
[1764118057918,4.427047,2962.1,2962.0,0.001]
[1764118058916,7.80303025,2962.1,2962.0,0.001]
[1764118059264,4.427047,2962.1,2962.0,0.001]
[1764118059943,1.1449,2962.1,2962.0,0.001]
[1764118060544,3.629101,2962.1,2962.0,0.001]
[1764118063257,3.94379567,2962.1,2962.0,0.001]
[1764118065857,7.31977892,2962.1,2962.0,0.001]
[1764118066053,7.72528292,2962.1,2962.0,0.001]
[1764118066275,23.98220603,2962.1,2962.0,0.001]
[1764118066487,24.21754989,2962.1,2962.0,0.001]
[1764118066661,24.94338809,2962.1,2962.0,0.001]
[1764118067275,38.74188309,2962.1,2962.0,0.001]
[1764118068057,1.79559811,2962.0,2961.4,0.001]
[1764118068256,26.76292311,2961.5,2961.4,0.001]
[1764118068459,27.39261778,2961.5,2961.4,0.001]
[1764118068669,27.86711778,2961.5,2961.4,0.001]
[1764118068882,28.00248546,2961.5,2961.4,0.001]
[1764118069401,28.00248546,2961.5,2960.9,0.001]
[1764118069402,25.444025,2961.0,2960.9,0.001]
[1764118069682,33.57176478,2961.0,2960.9,0.001]
[1764118069879,34.04626478,2961.0,2960.9,0.001]
[1764118070077,34.906921,2961.0,2960.9,0.001]
[1764118070280,34.18166912,2961.0,2960.9,0.001]
[1764118070449,34.63482212,2961.0,2960.9,0.001]
[1764118070650,34.80468668,2961.0,2960.9,0.001]
[1764118070849,34.63482212,2961.0,2960.9,0.001]
[1764118071360,38.01205953,2961.0,2960.9,0.001]
[1764118072804,32.43568853,2961.0,2960.9,0.001]
[1764118073009,32.65068853,2961.0,2960.9,0.001]
[1764118073375,33.94393253,2961.0,2960.9,0.001]
[1764118073772,33.26262053,2961.0,2960.9,0.001]
[1764118074303,30.05444753,2961.0,2960.9,0.001]
[1764118074606,30.26254353,2961.0,2960.9,0.001]
[1764118075482,33.08580253,2961.0,2960.9,0.001]